Cogmind - Beta 10.2 *** ADVENTURER MODE // 2021.08.04 @ 10:33:59 Player: Ender Result: Destroyed by G-47 Trooper with Particle Gun Performance ------------- Evolutions (2) 1000 Regions Visited (5) 1000 Robots Destroyed (31) 155 Value Destroyed (759) 759 Prototype IDs (26) 520 Alien Tech Used (0) 0 Bonus (300) 300 TOTAL SCORE: 3734 Bonus ------- Aligned with FarCom 300 Cogmind --------- Core Integrity 0/550 Matter 224/300 Energy 43/100 System Corruption 0% Temperature Cool (9) Movement Core (50) Location -8/Materials Parts ------- > --- POWER (2) -------- (None) > --- PROPULSION (3) --- (None) > --- UTILITY (4) ------ Visual Processing Unit Improved Signal Interpreter Improved Signal Interpreter Advanced Targeting Computer > --- WEAPON (2) ------- (None) > --- INVENTORY (4) ---- Light Ion Engine Small Storage Unit High-capacity Battery (400) Seismic Analyzer Peak State ------------ > --- POWER ------------ Light Ion Engine Light Ion Engine > --- PROPULSION ------- Wheel Wheel Improved Hover Unit > --- UTILITY ---------- Visual Processing Unit Improved Signal Interpreter Advanced Targeting Computer Armor Integrity Analyzer > --- WEAPON ----------- Heavy EM Shotgun Assault Cannon > --- INVENTORY -------- Small Storage Unit High-capacity Battery Improved Signal Interpreter Seismic Analyzer [Rating: 22] Favorites ----------- Power Ion Engine Engine Ion Engine Power Core Light Nuclear Core Propulsion Hover Unit Leg Aluminum Leg Wheel Wheel Hover Unit Hover Unit Utility Small Storage Unit Device Cloak of Protection Storage Small Storage Unit Processor Advanced Targeting Computer Protection Light Armor Plating Weapon Spread Laser Energy Gun Spread Laser Ballistic Gun Light Assault Rifle Ballistic Cannon Assault Cannon Special Weapon Welding Torch Build | -11 -10 -10 -10 -9 -8 ------- Run | Scr Mat Min Exi Min Mat Slots Evolved 4 | . . . . . 4 Power 1 | . . . . . 1 Propulsion 1 | . . . . . 1 Utility 2 | . . . . . 2 Weapon . | . . . . . . Parts Attached 45 | 7 11 . 2 2 23 Power 5 | 1 1 . 1 . 2 Engine 4 | 1 1 . . . 2 Core 1 | . . . 1 . . Reactor . | . . . . . . Propulsion 14 | 2 5 . . . 7 Treads . | . . . . . . Leg 3 | . 2 . . . 1 Wheel 6 | 2 1 . . . 3 Hover 5 | . 2 . . . 3 Flight . | . . . . . . Utility 15 | 2 3 . 1 2 7 Device 3 | . 1 . 1 1 . Storage 5 | 2 2 . . . 1 Processor 6 | . . . . 1 5 Hackware . | . . . . . . Protection 1 | . . . . . 1 Artifact . | . . . . . . Weapon 11 | 2 2 . . . 7 Energy Gun 5 | 1 2 . . . 2 Energy Cannon . | . . . . . . Ballistic Gun 2 | 1 . . . . 1 Ballistic Cannon 2 | . . . . . 2 Launcher . | . . . . . . Special Weapon 2 | . . . . . 2 Impact Weapon . | . . . . . . Slashing Weapon . | . . . . . . Piercing Weapon . | . . . . . . Special Melee Weapon . | . . . . . . Unidentified Prototypes 1 | . . . . . 1 Parts Lost 21 | . 2 . . 4 15 Power 2 | . . . . . 2 Propulsion 8 | . 1 . . 2 5 Utility 2 | . . . . . 2 Weapon 9 | . 1 . . 2 6 Highest Loss Streak 7 | . 2 . . 4 7 Average Slot Usage (%) 89 | . 98 100 99 95 65 Engine 9 | . 14 14 9 . 6 Core 3 | . . . 4 14 2 Wheel 6 | . 14 . . . 6 Hover 15 | . 11 28 28 26 4 Device 3 | . . . 3 13 2 Storage 17 | . 27 28 24 14 . Processor 7 | . . . . . 27 Energy Gun 18 | . 21 28 28 25 1 Ballistic Gun 2 | . 6 . . . 3 Ballistic Cannon 1 | . . . . . 5 Naked Turns . | . . . . . . Heaviest Build 21 | 16 17 17 21 21 17 Greatest Support 26 | 26 26 12 12 12 20 Greatest Overweight (x) 5 | . 2 1 1 5 5 Average Overweight (x) . | . . 1 1 1 . Largest Inventory Capacity 8 | 8 8 8 8 6 6 Average Capacity 6 | 6 7 8 7 6 4 Most Carried 8 | 7 8 8 8 6 6 Average Carried 6 | 3 7 7 7 5 4 Final Capacity 8 | 8 8 8 6 6 4 Final Carried 8 | 7 7 8 6 6 4 Class Distribution -------------------- 61% | Scavenger-Mutant 38% | Mutant Dominant Class ---------------- Mutant | -10/Materials Scavenger-Mutant | -10/Mines Scavenger-Mutant | -10/Exiles Scavenger-Mutant | -9/Mines Mutant | -8/Materials Resources | -11 -10 -10 -10 -9 -8 ----------- Run | Scr Mat Min Exi Min Mat Matter Collected 745 | 275 127 . . 31 312 Remotely . | . . . . . . Salvage Created 915 | 113 336 41 . . 425 Parts 70 | 5 30 5 . . 30 Haulers Intercepted . | . . . . . . Recyclers Shooed . | . . . . . . Parts Field Recycled . | . . . . . . Retrieved Matter . | . . . . . . Parts Self-Destructed . | . . . . . . Prevented . | . . . . . . Kills | -11 -10 -10 -10 -9 -8 ------- Run | Scr Mat Min Exi Min Mat Combat Hostiles Destroyed 16 | . 7 3 . . 6 Guns 11 | . 7 3 . . 1 Cannons 5 | . . . . . 5 Classes Destroyed 8 | 2 3 1 . . 2 Worker 3 | . 2 . . . 1 Builder 1 | . . . . . 1 Tunneler 1 | 1 . . . . . Recycler 2 | 1 . . . . 1 Operator 2 | . . . . . 2 Watcher 6 | . 2 . . . 4 Swarmer 4 | . . 3 . . 1 Grunt 12 | . 7 . . . 5 Best Kill Streak 5 | 2 5 3 . . 5 Combat Bots Only 3 | . 3 3 . . 2 Max Kills in Single Turn 1 | 1 1 1 . . 1 Gunslinging . | . . . . . . Exploded . | . . . . . . Melee . | . . . . . . Uniques/NPCs Destroyed . | . . . . . . Combat | -11 -10 -10 -10 -9 -8 -------- Run | Scr Mat Min Exi Min Mat Damage Taken 2204 | . 303 66 . 290 1545 Core 647 | . 70 5 . 16 556 Absorbed by Shields . | . . . . . . Core Remaining (%) 81 | 100 . . . 63 . Volleys Fired 107 | 5 39 5 . . 58 Largest 2 | 2 2 2 . . 2 Hottest 105 | 60 105 105 . . 94 Shots Fired 159 | 10 72 10 . . 67 Gun 111 | 10 72 10 . . 19 Cannon 44 | . . . . . 44 Launcher . | . . . . . . Special 4 | . . . . . 4 Kinetic 86 | 5 22 . . . 59 Thermal 55 | . 41 10 . . 4 Explosive . | . . . . . . Electromagnetic 18 | 5 9 . . . 4 Robot Hit Streak 16 | 5 14 4 . . 16 Robot Miss Streak 5 | 1 4 5 . . 3 Penetration Max . | . . . . . . Secondary Targets 2 | . 1 1 . . . Max Gunslinging Chain 1 | . 1 1 . . . Shots Hit Robots 119 | 7 53 8 . . 51 Core Hits 79 | 3 42 7 . . 27 Critical Hits 2 | . 1 . . . 1 Critical Kills 2 | . 1 . . . 1 Critical Parts Destroyed . | . . . . . . Melee Attacks . | . . . . . . Impact . | . . . . . . Slashing . | . . . . . . Piercing . | . . . . . . Sneak Attacks . | . . . . . . Combat Hostiles . | . . . . . . Follow-up Attacks . | . . . . . . Damage Inflicted 1676 | 74 491 75 . . 1036 Guns 810 | 74 491 75 . . 170 Cannons 850 | . . . . . 850 Explosions . | . . . . . . Melee . | . . . . . . Ramming 5 | . . . . . 5 Kinetic 1064 | 20 88 . . . 956 Thermal 403 | . 317 75 . . 11 Explosive . | . . . . . . Electromagnetic 204 | 54 86 . . . 64 Impact . | . . . . . . Slashing . | . . . . . . Piercing . | . . . . . . Highest Corruption . | . . . . . . Average Corruption . | . . . . . . Corruption Purged . | . . . . . . Overload Shots . | . . . . . . Overflow Damage 7 | . . . . . 7 Projectiles 7 | . . . . . 7 Explosions . | . . . . . . Melee . | . . . . . . Knockbacks 6 | . . . . . 6 Impact . | . . . . . . Kinetic 4 | . . . . . 4 Secondary 2 | . . . . . 2 Self-Inflicted Damage 2 | . . . . . 2 Shots . | . . . . . . Rammed 1 | . . . . . 1 Targets Rammed 1 | . . . . . 1 Kicked . | . . . . . . Crushed . | . . . . . . Highest Temperature 270 | 20 270 221 . 5 83 Average Temperature 63 | 15 76 115 . 4 23 Received Heat Transfer 1027 | . 222 . . 40 765 Siege Activations . | . . . . . . Robots Corrupted . | . . . . . . Combat Hostiles . | . . . . . . Parts Fried 1 | 1 . . . . . Impact Corruptions . | . . . . . . Robots Melted . | . . . . . . Combat Hostiles . | . . . . . . Parts Melted . | . . . . . . Heat Transferred 650 | . 425 125 . . 100 Parts Sabotaged . | . . . . . . Parts Stolen . | . . . . . . Parts Stripped . | . . . . . . Power Chain Reactions . | . . . . . . Missiles Intercepted . | . . . . . . Alert | -11 -10 -10 -10 -9 -8 ------- Run | Scr Mat Min Exi Min Mat Peak Influence 200 | 10 171 78 . . 200 Initial 8 | . 5 8 . . . Average 48 | 2 53 74 . . 65 Maximum Alert Level 1 | . . . . . 1 Low Security (%) 99 | 100 100 100 . 100 99 Level 1 . | . . . . . . Level 2 . | . . . . . . Level 3 . | . . . . . . Level 4 . | . . . . . . Level 5 . | . . . . . . High Security . | . . . . . . Max Security . | . . . . . . Squads Dispatched 3 | . 1 . . . 2 Investigation 1 | . 1 . . . . Extermination . | . . . . . . Reinforcement 2 | . . . . . 2 Assault . | . . . . . . Garrison . | . . . . . . Intercept . | . . . . . . Construction Impeded . | . . . . . . Haulers Reinforced . | . . . . . . Stealth | -11 -10 -10 -10 -9 -8 --------- Run | Scr Mat Min Exi Min Mat Distress Signals 2 | . 1 . . . 1 Communications Jammed . | . . . . . . Distress Signals . | . . . . . . Times Spotted 60 | . 16 2 . 11 31 Peak Tracking Total 10 | . 4 2 . 6 10 Tactical Retreats 13 | . 3 . . . 10 Traps | -11 -10 -10 -10 -9 -8 ------- Run | Scr Mat Min Exi Min Mat Traps Triggered 1 | . 1 . . . . Indirectly . | . . . . . . Trap Hack Attempts . | . . . . . . Triggered . | . . . . . . Disarmed . | . . . . . . Reprogrammed . | . . . . . . Reused . | . . . . . . Traps Extracted . | . . . . . . Installed . | . . . . . . Triggered . | . . . . . . Machines | -11 -10 -10 -10 -9 -8 ---------- Run | Scr Mat Min Exi Min Mat Machines Disabled 1 | . . . . . 1 Max in Single Turn 1 | . . . . . 1 Machines Sabotaged . | . . . . . . Garrisons Compromised . | . . . . . . Overloaded Fab Kills . | . . . . . . Fab Network Shutdowns . | . . . . . . Hacking | -11 -10 -10 -10 -9 -8 --------- Run | Scr Mat Min Exi Min Mat Machines Accessed 11 | . 5 . 5 . 1 Terminals 6 | . 5 . . . 1 Fabricators . | . . . . . . Repair Stations . | . . . . . . Recycling Units . | . . . . . . Scanalyzers . | . . . . . . Garrison Access . | . . . . . . Total Hacks 67 | . 16 . 50 . 1 Successful 62 | . 12 . 50 . . Failed 5 | . 4 . . . 1 Catastrophic 1 | . . . . . 1 Database Lockouts . | . . . . . . Manual 1 | . . . 1 . . Terminals 17 | . 16 . . . 1 Fabricators . | . . . . . . Repair Stations . | . . . . . . Recycling Units . | . . . . . . Scanalyzers . | . . . . . . Garrison Access . | . . . . . . Terminal Hacks 62 | . 12 . 50 . . Record 52 | . 3 . 49 . . Prototype ID Bank 1 | . 1 . . . . Branch Access Points 1 | . 1 . . . . Terminal Index 1 | . 1 . . . . Alert Level 1 | . 1 . . . . Locate Traps 1 | . 1 . . . . Hauler Manifests 2 | . 2 . . . . Registered Components 1 | . 1 . . . . Registered Prototypes 1 | . 1 . . . . EX-Prototype ID Bank 1 | . . . 1 . . Fabricator Hacks . | . . . . . . Repair Station Hacks . | . . . . . . Recycling Unit Hacks . | . . . . . . Scanalyzer . | . . . . . . Garrison Access Hacks . | . . . . . . Unauthorized Hacks . | . . . . . . Terminals . | . . . . . . Fabricators . | . . . . . . Repair Stations . | . . . . . . Recycling Units . | . . . . . . Scanalyzers . | . . . . . . Garrison Access . | . . . . . . Data Cores Recovered . | . . . . . . Used . | . . . . . . Hacking Detections 6 | . 5 . . . 1 Full Trace Events . | . . . . . . Feedback Events . | . . . . . . Feedback Blocked . | . . . . . . Robot Schematics Acquired . | . . . . . . Robots Built . | . . . . . . Matter . | . . . . . . Time . | . . . . . . Total Robot Build Rating . | . . . . . . Part Schematics Acquired . | . . . . . . Parts Built . | . . . . . . Matter . | . . . . . . Time . | . . . . . . Total Part Build Rating . | . . . . . . Parts Repaired . | . . . . . . Time . | . . . . . . Parts Recycled . | . . . . . . Recycled Matter . | . . . . . . Retrieved Matter . | . . . . . . Retrieved Components . | . . . . . . Parts Scanalyzed . | . . . . . . Part Schematics Acquired . | . . . . . . Parts Damaged . | . . . . . . Bothacking | -11 -10 -10 -10 -9 -8 ------------ Run | Scr Mat Min Exi Min Mat Used RIF Installer . | . . . . . . Robots Hacked . | . . . . . . Non-combat . | . . . . . . Combat . | . . . . . . Robot Hacks Applied . | . . . . . . Relay Couplers Released . | . . . . . . Robots Rewired . | . . . . . . Allies Hacked . | . . . . . . Hacks Repelled . | . . . . . . Allies | -11 -10 -10 -10 -9 -8 -------- Run | Scr Mat Min Exi Min Mat Total Allies . | . . . . . . Largest Group . | . . . . . . Highest-Rated Group . | . . . . . . Highest-Rated Ally . | . . . . . . Total Orders . | . . . . . . Ally Attacks . | . . . . . . Total Damage . | . . . . . . Kills . | . . . . . . Allies Corrupted . | . . . . . . Allies Melted . | . . . . . . Intel | -11 -10 -10 -10 -9 -8 ------- Run | Scr Mat Min Exi Min Mat Robot Analysis Total . | . . . . . . Derelict Logs Recovered 3 | . . 2 . 1 . Drone Launches . | . . . . . . Drone Recoveries . | . . . . . . Exploration | -11 -10 -10 -10 -9 -8 ------------- Run | Scr Mat Min Exi Min Mat Turns Passed 2861 | 87 970 164 518 367 755 Spaces Moved 1940 | 64 763 128 443 232 310 Core 116 | 9 . . . 1 106 Treads . | . . . . . . Legs 83 | . 40 . . . 43 Wheels 572 | 55 406 . . . 111 Hover 1169 | . 317 128 443 231 50 Flight . | . . . . . . Fastest Speed 50 | 50 90 116 116 116 50 Average Speed 108 | 84 102 116 116 126 103 Slowest Speed 300 | 90 190 116 116 300 300 Overloaded Moves . | . . . . . . Propulsion Burnouts . | . . . . . . Robots Hopped . | . . . . . . Cave-ins Triggered . | . . . . . . Exploration Rate (%) 45 | 3 94 26 71 40 36 Regions Visited 5 Branch Regions 3 Pre-discovered Areas 2 | . . . 1 1 . Known Exits Taken 1 | . 1 . . . . Unknown Exits Taken 4 | 1 . 1 1 1 . Scrap Searched 1 | . . . . 1 . Spaces Dug . | . . . . . . Terrain Destroyed 5 | . . . . . 5 Melee . | . . . . . . Projectile 5 | . . . . . 5 AOE . | . . . . . . Terrain Rammed . | . . . . . . Walls Destroyed . | . . . . . . Machines Disabled . | . . . . . . Actions | -11 -10 -10 -10 -9 -8 --------- Run | Scr Mat Min Exi Min Mat Total 2528 | 85 883 133 447 307 673 Wait 395 | . 46 . . 73 276 Move 1935 | 63 762 127 442 231 310 Hop . | . . . . . . Pick Up 22 | 9 11 1 . 1 . Fast Attach 31 | 6 6 . 1 . 18 Attach 4 | 1 . . . . 3 Detach 2 | . . . . . 2 Swap 10 | . 5 . 1 2 2 Drop 21 | 1 14 . 3 . 3 Fire 107 | 5 39 5 . . 58 Melee . | . . . . . . Ram 1 | . . . . . 1 Kick . | . . . . . . Crush . | . . . . . . Escape Stasis . | . . . . . . Rewire . | . . . . . . Trap . | . . . . . . Miscellaneous . | . . . . . . Route ------- -11/Scrapyard -10/Materials (discovered 4 exits: [*Mat x3] / *Min) -10/Mines -10/Exiles (discovered 2 exits: [*Min x2]) -9/Mines -8/Materials (discovered 2 exits: Fac x2) History --------- Turn | Location | Event 45 | -11/Scrapyard | Discovered new exit (range 15) 88 | -11/Scrapyard | Entered Materials 289 | -10/Materials | Discovered new exit (range 10) 307 | -10/Materials | Build established: Mutant 364 | -10/Materials | Discovered new exit (range 3) 580 | -10/Materials | Discovered new exit (range 3) 945 | -10/Materials | Build established: Scavenger-Mutant 1008 | -10/Materials | Identified exit to Mines 1058 | -10/Materials | Entered Mines 1086 | -10/Mines | Learned Materials stockpile data 1107 | -10/Mines | Learned 2 Materials zone layouts 1216 | -10/Mines | Deemed a non-threat by the Exiles lab entrance 1217 | -10/Mines | Discovered new exit (range 5) 1222 | -10/Mines | Entered Exiles 1241 | -10/Exiles | Discovered new exit (range 15) 1279 | -10/Exiles | Met 8R-AWN 1299 | -10/Exiles | Met EX-HEX 1342 | -10/Exiles | Met EX-DEC 1396 | -10/Exiles | Met EX-BIN 1413 | -10/Exiles | Aligned with FarCom system 1414 | -10/Exiles | Given EX-Vault access code 1507 | -10/Exiles | Learned location of Zion (-7) 1564 | -10/Exiles | Opened EX-Vault 1621 | -10/Exiles | Found Cloak of Protection 1648 | -10/Exiles | Warned to stay clear of 0b10 Research branches 1723 | -10/Exiles | Discovered new exit (range 14) 1740 | -10/Exiles | Left Exiles lab with Cloak of Protection 1740 | -10/Exiles | Entered Mines 1741 | -9/Mines | Met a Derelict bent on vengeance 2018 | -9/Mines | Assembled infested the area 2095 | -9/Mines | Discovered new exit (range 10) 2107 | -9/Mines | Entered Materials 2107 | -8/Materials | Evolved 4 slots: Power x1, Propulsion x1, Utility x2 2108 | -8/Materials | Identified exit to Factory 2137 | -8/Materials | Lost 4 parts (2n2w) 2347 | -8/Materials | Build established: Mutant 2395 | -8/Materials | Lost 5 parts (1p2u2w) 2787 | -8/Materials | Core integrity fell below 50% 2810 | -8/Materials | Build established: Scavenger-Mutant 2825 | -8/Materials | Core integrity fell below 20% 2853 | -8/Materials | Lost 7 parts (1p4n2w) 2862 | -8/Materials | Destroyed by G-47 Trooper with Particle Gun Last Messages --------------- K-01 Serf destroyed. K-01 Serf collects debris. Acquired Com. Wheel. K-01 Serf collects debris. Wheel destroyed. Assault Cannon destroyed. K-01 Serf collects debris. Hover Unit destroyed. Lgt. Ion Engine destroyed. K-01 Serf collects debris. Critical hit. Assault Cannon destroyed. K-01 Serf collects debris. Com. Wheel destroyed. K-01 Serf collects debris. Slammed into K-01 Serf. Acquired Airjet. Acquired Welding Torch. Welding Torch destroyed. Airjet destroyed. Map ----- +----------------------------------------------------+ | ???????????????????????????????????????? | | ???????????????????????????????????????? | | ???????????????????????????????????????? | | ???????????????????????????????????????? | | ???????????????????????????????????????? | | ???????????????????????????????????????? | | ???????????????????????????????????????? | | ???????????????????????????????????????? | | ???????????????????????????????????????? | | ???????????????????????????????????????? | | ???????????????????????????????????????? | | ???????????????????????????????????????? | | ??????????????????????????#????????????? | | ????????????????????????? ?????????????? | | ???????????????????????? ??????????????? | | ??????????????????????? ???????????????? | | ?????????????????????? #???????????????? | | ??###########???????? #???????????????? | | ??# #??????? #???????????????? | | ??# """ """ #+###### #???????????????? | | ??# """ """ # #???????????????? | | ??# """ """ / g #???????????????? | | ??# # g #???????????????? | | ??# g ####g#######???????????????? | | ??# ! g ## sss #??????????????????? | | ??# ! ## @ #??????????????????? | | ??####/####### #??????????????????? | | ?????# #?????#!! #??????????????????? | | ?????# #?????#!! #??????????????????? | | ?????# #?????#!!| #??????????????????? | | ?????# #?????########??????????????????? | | ?????# #?????########??????????????????? | | ?????# ####??#! ! ! #??????????????????? | | ?????# #??# #??????????????????? | | ?????#### #??# """" #?????????????+????? | | ????????# #??# """" #???????????? #????? | | ????????# #??# """" #??????????? #????? | | ????????#Y#??# #?????????? ##???? | | ????????# #######+#+########## ##### | | ????????# | | ????????+ | | ????????# | | ????????# #### #???? | | ????????# #???????##???? | | ????????# !!! #????????????? | | ????????# !!! #????????????? | | ??????? # !!! #????????????? | | ???????#" #????????????? | | ???????## #????????????? | | ????????# #????????????? | +----------------------------------------------------+ Best States ------------- Heat Dissipation 31 Energy Generation 15 Energy Capacity 250 Matter Stores 300 Matter Capacity 300 Sight Range 18 Terrain Scan Density 85 Cloak Strength 5 Armor Coverage 150 Resistance: KI 20 Resistance: TH 20 Resistance: EX 20 Resistance: EM 20 Resistance: I 20 Resistance: S 20 Resistance: P 20 Evasion (%) 52 Targeting Accuracy 8 Armor Integrity Analysis 33 Offensive Hacking 10 Item Schematics ----------------- None Robot Schematics ------------------ None Fabricated ------------ Nothing Alien Tech Used ----------------- None Achievements -------------- Storm Trooper Challenges ------------ None Game ------ Seed SurgeMobileActivator Manual? 0 Play Time 00:55:24 Cumulative 11.9 hours Start 2021.08.03 @ 23:25:54 End 2021.08.04 @ 10:33:59 Sessions 3 Manual Loads 0 Difficulty Adventurer Special Mode None Game No. 4 Rogue 0 Adventurer 3 Explorer 1 Win Type - Total 0 Types 0/0/0/0/0/0/0/0/0 Lore% 11 Gallery% 16 Achievement% 13 Wizard Run 0 Options --------- ASCII 0 Keyboard 0 Movement Mouse Keybinds 0 Fullscreen 2 Font 18/X11 Map View 76x50 Tactical HUD 0 Map Filters NONE Filters NONE Steam 1 RUN: cb027001-d99c-44b0-aa7c-a0ab56550dc9